bitfinex-derivatives/quotes_ETHF0:USTF0_20241105
["timestamp","ask_amount","ask_price","bid_price","bid_amount"]
[1730789624614,3.77458906,2430.3,2430.2,0.41171]
[1730789624913,3.77458906,2430.3,2430.2,0.63486491]
[1730789625501,3.77458906,2430.3,2430.2,4.75006491]
[1730789626716,3.77458906,2430.3,2430.2,5.30818337]
[1730789627414,3.77458906,2430.3,2430.2,5.08502846]
[1730789627607,3.77458906,2430.3,2430.2,5.3083097]
[1730789629017,6.44400333,2430.4,2430.2,4.8965997]
[1730789629315,6.44400333,2430.4,2430.3,0.63490956]
[1730789631508,6.44400333,2430.4,2430.3,0.41169]
[1730789631713,6.44400333,2430.4,2430.3,0.6349447]
[1730789631915,6.44400333,2430.4,2430.3,0.41169]
[1730789632103,0.8742,2430.6,2430.3,0.22325655]
[1730789632420,1.61945301,2430.8,2430.4,1.24034113]
[1730789632615,2.06105301,2430.8,2430.7,0.41163]
[1730789634315,1.18625301,2430.8,2430.7,0.41163]
[1730789634623,3.23242913,2430.9,2430.8,0.41161]
[1730789634816,8.60682032,2431.0,2430.8,0.41161]
[1730789634817,8.60682032,2431.0,2430.8,0.67149588]
[1730789635012,9.01839032,2431.0,2430.9,0.41159]
[1730789635318,8.60682032,2431.0,2430.9,0.41159]
[1730789635717,11.8397956,2431.0,2430.9,0.41159]
[1730789636621,8.6319956,2431.0,2430.9,0.41159]
[1730789639718,4.86082829,2431.0,2430.9,0.41159]
[1730789639922,1.62785301,2431.0,2430.9,0.41159]
[1730789640722,0.4416,2431.0,2430.9,1.59784301]
[1730789640915,0.4258,2431.1,2431.0,0.41157]
[1730789641615,0.83736,2431.1,2431.0,0.41157]
[1730789641815,0.83736,2431.1,2430.9,0.41158]
[1730789642018,1.18625301,2431.0,2430.9,0.41158]
[1730789645928,0.41159,2430.9,2430.8,0.4116]
[1730789646131,1.64935301,2430.9,2430.8,0.4116]
[1730789646725,2.06095301,2430.9,2430.7,0.41161]
[1730789647023,2.04137301,2430.8,2430.6,3.2078]
[1730789647219,0.4685,2430.7,2430.6,3.61943]
[1730789647419,0.4685,2430.7,2430.6,0.41163]
[1730789649125,0.88013,2430.7,2430.6,0.41163]
[1730789649325,0.4685,2430.7,2430.6,0.41163]
[1730789649631,0.88013,2430.7,2430.6,0.41163]
[1730789649823,0.4685,2430.7,2430.6,0.41163]
[1730789650529,0.88013,2430.7,2430.6,0.41163]
[1730789651031,0.4685,2430.7,2430.6,0.41163]
[1730789656030,0.88013,2430.7,2430.6,0.41163]
[1730789657530,0.4685,2430.7,2430.6,0.41163]
[1730789658229,0.88013,2430.7,2430.3,0.8773]
[1730789658533,0.4519,2430.6,2430.5,0.41165]
[1730789658829,0.86354,2430.6,2430.5,0.41165]
[1730789659126,0.4519,2430.6,2430.5,0.41165]
[1730789659935,6.33978719,2430.8,2430.7,0.41163]
[1730789660629,6.33978719,2430.8,2430.7,0.84243]
[1730789660630,2.68848719,2430.8,2430.7,0.84243]
[1730789661034,2.68848719,2430.8,2430.7,4.95603]
[1730789661528,2.68848719,2430.8,2430.7,0.84243]
[1730789661737,3.87207272,2431.0,2430.7,0.4308]
[1730789662034,3.87207272,2431.0,2430.9,0.41159]
[1730789663539,1.18625301,2431.0,2430.9,0.41159]
[1730789663733,0.4335,2431.2,2431.1,0.41156]
[1730789664735,1.61975301,2431.2,2431.1,0.41156]
[1730789665635,1.18625301,2431.2,2431.1,0.41156]
[1730789669032,1.18625301,2431.2,2430.9,0.9093]
[1730789669241,1.59780301,2431.2,2431.0,0.41156]
[1730789669440,0.4484,2431.1,2431.0,0.41156]
[1730789670643,0.85996,2431.1,2431.0,0.41156]
[1730789671235,0.4484,2431.1,2431.0,0.41156]
[1730789673853,0.41158,2431.0,2430.9,0.41159]
[1730789674147,2.06035301,2431.0,2430.9,0.41159]
[1730789674348,6.17395301,2431.0,2430.9,0.41159]
[1730789675343,6.58552301,2431.0,2430.9,0.41159]
[1730789675645,3.23494192,2431.2,2431.1,0.41156]
[1730789675947,4.39405301,2431.3,2431.2,0.41154]
[1730789677046,4.80557301,2431.3,2431.2,0.41154]
[1730789677444,4.39405301,2431.3,2431.2,0.41154]
[1730789679149,1.18625301,2431.3,2431.2,0.41154]
[1730789680647,1.59777301,2431.3,2431.2,0.41154]
[1730789681039,1.18625301,2431.3,2431.2,0.41154]
[1730789682951,5.29905301,2431.3,2431.0,1.3298]
[1730789683152,1.59778301,2431.3,2431.2,0.41154]
[1730789683649,5.71058301,2431.3,2431.2,0.41154]
[1730789685748,9.48559525,2431.3,2431.2,0.41154]
[1730789688251,5.37279525,2431.3,2431.2,0.41154]
[1730789688457,9.48559525,2431.3,2431.2,0.41154]
[1730789691855,9.48559525,2431.3,2430.8,1.02903]
[1730789691856,0.4116,2430.9,2430.8,0.41161]
[1730789692057,1.18625301,2431.1,2430.8,0.22327683]
[1730789692264,1.59780301,2431.2,2431.1,0.41156]
[1730789692655,5.71140301,2431.2,2431.1,0.41156]
[1730789692852,5.71140301,2431.2,2430.9,1.3539]
[1730789693161,0.41156,2431.1,2431.0,0.41156]
[1730789693553,4.52516,2431.1,2431.0,0.41156]
[1730789694257,4.95126,2431.1,2431.0,0.41156]
[1730789695363,4.5397,2431.1,2430.9,1.3539]
[1730789695564,0.41157,2431.0,2430.9,1.76548]
[1730789695760,0.83767,2431.1,2431.0,0.41157]
[1730789696157,4.95127,2431.1,2431.0,0.41157]
[1730789700872,4.95127,2431.1,2430.9,0.8885]
[1730789700873,0.41157,2431.0,2430.9,0.8885]
[1730789701072,1.30687,2431.0,2430.9,1.11192023]
[1730789701278,1.30687,2431.0,2430.9,1.09061023]
[1730789702774,0.4328,2431.0,2430.9,1.09061023]
[1730789703078,0.84437,2431.0,2430.9,1.09061023]
[1730789703373,0.84437,2431.0,2430.9,1.09211571]
[1730789704877,0.84437,2431.0,2430.9,0.22492571]
[1730789705177,0.41164,2430.7,2430.6,0.41163]
[1730789705373,0.41164,2430.7,2430.6,0.63658795]
[1730789705772,1.30324,2430.7,2430.6,0.63658795]
[1730789706172,0.41166,2430.6,2430.5,0.41166]
[1730789706477,2.04510301,2430.6,2430.5,0.41166]
[1730789706678,42.84510301,2430.6,2430.5,0.41166]
[1730789707078,2.04510301,2430.6,2430.5,0.41166]
[1730789708174,0.41166,2430.5,2430.4,0.84896]
[1730789708981,0.4472,2430.6,2430.4,0.66208879]
[1730789709181,3.61942,2430.8,2430.4,0.4373]
[1730789709488,4.80567301,2430.8,2430.6,0.41163]
[1730789709878,4.80567301,2430.8,2430.7,0.84023]
[1730789710179,3.2078,2430.8,2430.7,0.4286]
[1730789710388,3.2078,2430.8,2430.7,0.84023]
[1730789712684,0.4116,2430.9,2430.8,0.4116]
[1730789712880,0.4116,2430.9,2430.8,1.3413]
[1730789713080,2.45484301,2431.0,2430.9,0.41159]
[1730789713481,2.04325301,2431.0,2430.8,0.9297]
[1730789713675,0.41159,2430.9,2430.8,1.3413]
[1730789713880,2.04325301,2431.0,2430.8,0.9297]
[1730789714086,2.45483301,2431.0,2430.9,0.41159]
[1730789714284,1.59783301,2431.0,2430.9,0.41159]
[1730789714495,1.18625301,2431.0,2430.9,0.41159]
[1730789714788,4.06176,2431.1,2431.0,0.41157]
[1730789714989,3.61936,2431.1,2431.0,0.41157]
[1730789717284,3.61937,2431.1,2431.0,0.41157]
[1730789717490,0.41158,2431.0,2430.9,0.41159]
[1730789717683,1.59783301,2431.0,2430.9,0.41159]
[1730789721391,5.37634271,2431.0,2430.9,0.41159]
[1730789722088,4.96476271,2431.0,2430.9,0.41159]
[1730789722290,5.37633271,2431.0,2430.9,0.41159]
[1730789723399,7.5260968,2431.2,2430.8,0.9297]
[1730789723591,1.59781301,2431.1,2431.0,0.41157]
[1730789723993,1.18625301,2431.1,2430.8,0.9297]
[1730789724288,0.41158,2431.0,2430.9,0.41159]
[1730789724890,1.59782301,2431.1,2431.0,0.41157]
[1730789725996,4.80562301,2431.1,2431.0,0.41157]
[1730789726399,4.39405301,2431.1,2430.8,0.9297]
[1730789726608,0.41158,2431.0,2430.9,0.41158]
[1730789726794,4.80562301,2431.1,2431.0,0.41157]
[1730789727095,8.58454506,2431.1,2431.0,0.41157]
[1730789727299,7.39829205,2431.1,2431.0,0.41157]
[1730789727698,8.58454506,2431.1,2431.0,0.41157]
[1730789728898,8.17297506,2431.1,2431.0,0.41157]
[1730789729101,4.39405301,2431.1,2431.0,0.41157]
[1730789729804,4.80561301,2431.1,2431.0,0.41157]
[1730789730003,4.39405301,2431.1,2431.0,0.41157]
[1730789731003,1.18625301,2431.1,2431.0,0.41157]
[1730789731805,4.39405301,2431.1,2431.0,0.41157]
[1730789732299,1.18625301,2431.1,2431.0,0.41157]
[1730789732502,4.80561301,2431.1,2431.0,0.41157]
[1730789733102,1.18625301,2431.1,2431.0,0.41157]
[1730789733302,4.39405301,2431.1,2431.0,0.41157]
[1730789735500,3.2078,2431.1,2431.0,0.41157]
[1730789736702,3.2078,2431.1,2431.0,0.63605212]
[1730789737608,6.98939092,2431.1,2431.0,4.74965212]
[1730789737797,6.98939092,2431.1,2431.0,0.63605212]
[1730789737992,6.98939092,2431.1,2431.0,5.19275212]
[1730789738704,6.98939092,2431.1,2431.0,1.07915212]
[1730789739313,6.98939092,2431.1,2431.0,1.07910455]
[1730789739314,3.2078,2431.1,2431.0,1.07910455]
[1730789740800,3.61936,2431.1,2431.0,1.07910455]
[1730789741404,3.2078,2431.1,2431.0,1.07910455]
[1730789742008,3.61936,2431.1,2431.0,1.07910455]
[1730789742309,3.2078,2431.1,2431.0,1.07910455]
[1730789742999,3.2078,2431.1,2431.0,0.85467]
[1730789743305,3.2078,2431.1,2431.0,1.07907831]
[1730789745004,4.19159074,2431.2,2431.1,0.41156]
[1730789745399,3.78005074,2431.2,2431.1,0.41156]
[1730789745609,4.19159074,2431.2,2431.1,0.41156]
[1730789746005,3.78005074,2431.2,2431.1,1.59781301]
[1730789746206,3.78005074,2431.2,2431.1,5.93571906]
[1730789746710,3.78005074,2431.2,2431.1,5.93568322]
[1730789747416,4.32005799,2431.3,2431.2,0.41154]
[1730789747712,4.32005799,2431.3,2431.2,0.86824]
[1730789747910,4.32005799,2431.3,2431.2,5.63615206]
[1730789748313,4.32005799,2431.3,2431.2,5.41194]
[1730789748515,6.16146524,2431.5,2431.4,0.41151]
[1730789748714,1.3014,2431.5,2431.4,0.41151]
[1730789750517,0.41151,2431.4,2431.3,0.85261]
[1730789751013,2.48765301,2431.5,2431.4,0.41151]
[1730789751915,2.07615301,2431.5,2431.3,0.4411]
[1730789752212,2.48764301,2431.5,2431.4,0.41151]
[1730789752415,0.41151,2431.4,2431.3,0.85261]
[1730789754016,2.07615301,2431.5,2431.3,0.4411]
[1730789754215,0.8899,2431.5,2431.4,0.41151]
[1730789754418,1.30139,2431.5,2431.4,0.41151]
[1730789754611,2.48764301,2431.5,2431.4,0.41151]
[1730789755121,2.07615301,2431.5,2431.4,0.41151]
[1730789755617,2.48764301,2431.5,2431.4,0.41151]
[1730789755920,2.07615301,2431.5,2431.4,0.41151]
[1730789756416,2.48764301,2431.5,2431.4,0.41151]
[1730789757719,2.07615301,2431.5,2431.4,0.41151]
[1730789758310,2.48764301,2431.5,2431.4,0.41151]
[1730789758714,2.07615301,2431.5,2431.4,0.41151]
[1730789759624,0.8899,2431.5,2431.4,0.41151]
[1730789761721,1.30139,2431.5,2431.4,0.41151]
[1730789762218,1.30139,2431.5,2431.1,1.18625301]
[1730789762219,0.41155,2431.2,2431.1,0.41155]
[1730789762422,0.41155,2431.2,2431.1,0.63566584]
[1730789762721,0.41154,2431.3,2431.2,0.41154]
[1730789767623,3.64745356,2431.3,2431.2,0.41154]
[1730789768219,3.64745356,2431.3,2430.7,3.2078]
[1730789768220,7.34871356,2431.3,2430.7,4.23685]
[1730789768524,1.18625301,2431.1,2431.0,0.41157]
[1730789769026,1.64795301,2431.1,2431.0,0.41157]
[1730789769824,0.4617,2431.1,2431.0,0.41157]
[1730789770528,6.47182389,2431.3,2431.2,0.41154]
[1730789770731,6.47182389,2431.3,2431.2,0.6358924]
[1730789771228,3.23591356,2431.3,2431.2,0.41154]
[1730789771433,4.83368657,2431.3,2431.2,0.41154]
[1730789772134,4.42216657,2431.3,2431.2,0.41154]
[1730789773025,3.23591356,2431.3,2431.2,0.41154]
[1730789773433,3.23591356,2431.3,2431.2,0.63592154]
[1730789774630,3.23591356,2431.3,2431.2,1.19340819]
[1730789774831,3.23591356,2431.3,2431.2,0.63592154]
[1730789775134,3.23591356,2431.3,2431.2,0.63586497]
[1730789775824,3.68401356,2431.3,2431.2,0.63586497]
[1730789776025,4.09553356,2431.3,2431.2,0.41154]
[1730789776232,3.68401356,2431.3,2431.2,0.41154]
[1730789777830,4.09553356,2431.3,2431.1,1.3144]
[1730789778026,0.41155,2431.2,2431.1,0.41155]
[1730789778230,0.469,2431.2,2430.9,0.4317]
[1730789778432,0.4419,2431.1,2431.0,0.63604063]
[1730789782731,1.62815301,2431.1,2431.0,0.63604063]
[1730789783130,1.62815301,2431.1,2431.0,0.41156]
[1730789783332,1.62815301,2431.1,2431.0,0.63606619]
[1730789786443,1.62815301,2431.1,2431.0,0.41156]
[1730789787140,1.62815301,2431.1,2431.0,0.63609232]
[1730789787339,1.62815301,2431.1,2431.0,0.41156]
[1730789787733,0.4419,2431.1,2431.0,0.63607684]
[1730789790241,4.80556301,2431.4,2431.2,0.41154]
[1730789790450,4.80556301,2431.4,2431.3,0.41152]
[1730789790451,4.39405301,2431.4,2431.3,0.41152]
[1730789791041,3.2078,2431.4,2431.3,0.41152]
[1730789791245,6.98392299,2431.4,2431.3,0.6359823]
[1730789792041,3.77612299,2431.4,2431.3,0.6359823]
[1730789794845,3.77612299,2431.4,2431.3,0.63594814]
[1730789795950,3.77612299,2431.4,2431.3,0.63594752]
[1730789796246,3.23698319,2431.4,2431.3,0.63594752]
[1730789797752,4.20532299,2431.5,2431.4,0.41151]
[1730789798652,0.4292,2431.5,2431.4,0.41151]
[1730789799356,0.84069,2431.5,2431.4,0.41151]
[1730789799548,0.4292,2431.5,2431.4,0.41151]
[1730789800756,1.18625301,2431.6,2431.5,0.41149]
[1730789801056,4.80551301,2431.7,2431.6,0.41147]
[1730789801249,4.39405301,2431.7,2431.2,2.39024]
[1730789801450,4.39405301,2431.7,2431.5,0.41147]
[1730789801451,3.77690096,2431.6,2431.5,0.41147]
[1730789801948,4.18837096,2431.6,2431.5,0.41147]
[1730789802150,5.37462397,2431.6,2431.5,0.41147]
[1730789803262,4.96315397,2431.6,2431.5,0.41147]
[1730789803655,3.77690096,2431.6,2431.5,0.41147]
[1730789804356,4.96315397,2431.6,2431.5,0.41147]
[1730789804553,1.59772301,2431.6,2431.5,0.41147]
[1730789805363,1.18625301,2431.6,2431.5,0.41147]
[1730789806061,1.59772301,2431.6,2431.5,0.41147]
[1730789807262,1.18625301,2431.6,2431.5,0.41147]
[1730789807457,3.2078,2431.7,2431.6,0.41147]
[1730789809464,3.2078,2431.7,2431.3,1.0288]
[1730789809773,3.2078,2431.7,2431.6,0.41147]
[1730789811766,0.4378,2431.8,2431.5,3.2078]
[1730789811967,0.4378,2431.8,2431.7,0.41146]
[1730789812175,0.925,2431.9,2431.8,0.41144]
[1730789812771,1.33642,2431.9,2431.8,0.41144]
[1730789813172,0.925,2431.9,2431.8,0.41144]
[1730789813767,1.33642,2431.9,2431.8,0.41144]
[1730789813963,0.925,2431.9,2431.8,0.41144]
[1730789816474,4.16101524,2431.9,2431.8,0.41144]
[1730789816779,4.57243524,2431.9,2431.8,0.41144]
[1730789817072,4.16101524,2431.9,2431.8,0.41144]
[1730789817875,4.57243524,2431.9,2431.8,0.41144]
[1730789818071,0.41144,2431.8,2431.7,0.87074]
[1730789818376,4.57244524,2431.9,2431.8,0.41144]
[1730789819266,0.925,2431.9,2431.7,0.4593]
[1730789819479,0.4709,2432.0,2431.7,1.64555301]
[1730789819674,0.4709,2432.0,2431.9,0.41142]
[1730789823880,3.70674801,2432.0,2431.9,0.41142]
[1730789830773,3.23584801,2432.0,2431.9,0.41142]
[1730789834178,5.92691279,2432.0,2431.9,0.41142]
[1730789834882,2.69106478,2432.0,2431.9,0.41142]
[1730789836977,2.69106478,2432.0,2431.9,1.59767301]
[1730789843476,2.69106478,2432.0,2431.9,4.80547301]
[1730789843678,0.4482,2432.1,2431.9,4.39405301]
[1730789843882,0.4482,2432.1,2432.0,0.41141]
[1730789844076,0.4482,2432.1,2432.0,0.86411]
[1730789844277,0.9233,2432.2,2432.0,0.4527]
[1730789844578,0.9233,2432.2,2432.1,0.41139]
[1730789845286,0.4385,2432.3,2432.2,0.41137]
[1730789845486,0.84985,2432.3,2432.0,1.63895301]
[1730789845688,0.4385,2432.3,2432.1,0.41137]
[1730789845887,0.84986,2432.3,2432.2,0.41137]
[1730789847291,4.08342899,2432.3,2432.2,0.41137]
[1730789848186,0.84986,2432.3,2432.2,0.41137]
[1730789848383,0.4385,2432.3,2432.2,0.41137]
[1730789849277,0.84985,2432.3,2432.2,0.41137]
[1730789849481,0.4385,2432.3,2432.2,0.41137]
[1730789851989,0.4385,2432.3,2432.2,1.59762301]
[1730789852190,3.77249716,2432.4,2432.3,0.41135]
[1730789852689,3.77249716,2432.4,2432.3,0.83725]
[1730789853692,4.18383716,2432.4,2432.3,0.83725]
[1730789853890,3.77249716,2432.4,2432.3,0.83725]
[1730789854092,7.00691112,2432.4,2432.3,0.83725]
[1730789854396,3.77249716,2432.4,2432.3,0.83725]
[1730789857095,4.93653,2432.5,2432.4,0.41134]
[1730789859798,8.71217295,2432.5,2432.4,0.41134]
[1730789860001,8.30084295,2432.5,2432.4,0.41134]
[1730789860391,8.71216295,2432.5,2432.4,0.41134]
[1730789860714,5.09304295,2432.5,2432.4,0.41134]
[1730789861006,8.30084295,2432.5,2432.4,0.41134]
[1730789861196,8.71216295,2432.5,2432.4,0.41134]
[1730789862407,8.30084295,2432.5,2432.4,0.41134]
[1730789862694,8.30084295,2432.5,2432.3,0.41134]
[1730789862695,0.41135,2432.4,2432.3,0.41134]
[1730789862900,4.1112,2432.4,2431.8,0.9174]
[1730789863097,3.2078,2432.2,2432.1,0.41139]
[1730789863493,4.5111,2432.2,2432.1,0.41139]
[1730789863695,4.92247,2432.2,2432.1,0.41139]
[1730789864397,8.15819085,2432.2,2432.1,0.41139]
[1730789864600,7.74682085,2432.2,2432.1,0.41139]
[1730789865302,8.15819085,2432.2,2432.1,0.41139]
[1730789865603,7.74682085,2432.2,2432.1,0.41139]
[1730789866004,8.15819085,2432.2,2432.1,0.41139]
[1730789866904,4.95039085,2432.2,2432.1,0.41139]
[1730789867593,1.71467,2432.2,2432.1,0.41139]
[1730789867798,1.3033,2432.2,2432.1,0.41139]
[1730789869903,1.71467,2432.2,2432.1,0.41139]
[1730789870103,4.53951262,2432.2,2432.1,0.41139]
[1730789870306,1.3033,2432.2,2432.1,0.41139]
[1730789871107,0.4358,2432.2,2432.1,0.63551683]
[1730789871307,0.84717,2432.2,2432.1,0.63551683]
[1730789871703,0.4358,2432.2,2432.1,0.63551683]
[1730789872500,0.4358,2432.2,2432.1,0.22412683]
[1730789872696,0.84717,2432.2,2432.1,0.22412683]
[1730789874104,0.84717,2432.2,2432.1,0.22409792]
[1730789874308,0.84717,2432.2,2432.1,0.63551821]
[1730789876308,4.08381361,2432.2,2432.1,0.63551821]
[1730789876713,3.67244361,2432.2,2432.1,0.63551821]
[1730789877016,0.84717,2432.2,2432.1,0.63551821]
[1730789878119,0.4358,2432.2,2432.1,0.63551821]
[1730789878932,0.84717,2432.2,2432.1,0.63551821]
[1730789879727,0.4358,2432.2,2432.1,0.63551821]
[1730789880426,0.84717,2432.2,2432.1,0.63551821]
[1730789883729,0.4358,2432.2,2432.1,0.41139]
[1730789883929,0.4358,2432.2,2432.1,0.63557387]
[1730789884132,0.84717,2432.2,2432.1,0.63557387]
[1730789885731,0.4358,2432.2,2432.1,0.63557387]
[1730789885933,0.4358,2432.2,2432.1,0.63558192]
[1730789886726,0.4358,2432.2,2432.1,1.19255746]
[1730789887030,0.4358,2432.2,2432.1,0.63558192]
[1730789887222,0.4358,2432.2,2432.1,1.19257904]
[1730789887425,0.4358,2432.2,2432.1,0.63558192]
[1730789888328,0.4358,2432.2,2432.1,1.19259092]
[1730789888928,0.4358,2432.2,2432.1,2.51699092]
[1730789891028,1.31826,2432.3,2432.1,2.51699092]
[1730789891029,0.9069,2432.3,2432.2,0.41137]
[1730789891336,1.31825,2432.3,2432.2,0.63557958]
[1730789891934,0.9069,2432.3,2432.2,0.63557958]
[1730789892130,3.2078,2432.4,2432.3,0.41135]
[1730789892325,3.2078,2432.4,2432.3,1.19254504]
[1730789892535,7.52558564,2432.4,2432.3,1.19254504]
[1730789893031,7.52558564,2432.4,2432.3,2.37879805]
[1730789893622,7.52558564,2432.4,2432.3,1.19254504]
[1730789893826,3.672,2432.4,2432.3,1.19254504]
[1730789895438,3.672,2432.4,2432.3,1.19245897]
[1730789895629,3.672,2432.4,2432.3,0.63555958]
[1730789895829,3.672,2432.4,2432.3,1.19246143]
[1730789896132,3.672,2432.4,2432.3,0.63555958]
[1730789896830,0.4642,2432.4,2432.3,0.63555958]
[1730789897031,0.87554,2432.4,2432.3,0.22420958]
[1730789897233,1.32994,2432.4,2432.3,0.22420958]
[1730789897431,1.32994,2432.4,2432.3,0.63555958]
[1730789900340,0.9186,2432.4,2432.3,0.63555958]
[1730789900542,1.32994,2432.4,2432.3,0.63555958]
[1730789901836,0.9186,2432.4,2432.3,0.63555958]
[1730789902039,7.3966164,2432.5,2432.4,0.41134]
[1730789902341,7.3966164,2432.5,2432.4,0.63554958]
[1730789903040,4.1888164,2432.5,2432.4,0.63554958]
[1730789903240,7.3966164,2432.5,2432.4,0.63554958]
[1730789903540,4.1888164,2432.5,2432.4,0.63554958]
[1730789903939,7.3966164,2432.5,2432.4,0.63554958]
[1730789904135,4.1888164,2432.5,2432.4,0.63554958]
[1730789904342,7.3966064,2432.5,2432.4,0.63554958]
[1730789904843,11.17346956,2432.5,2432.4,0.63554958]
[1730789905241,11.17346956,2432.5,2432.4,0.41134]
[1730789905447,11.17346956,2432.5,2432.4,0.63696892]
[1730789906040,10.76214956,2432.5,2432.4,0.63696892]
[1730789906240,6.9852864,2432.5,2432.4,0.63696892]
[1730789908751,3.2078,2432.5,2432.4,0.22562892]
[1730789909048,3.2078,2432.5,2432.4,0.63696677]
[1730789909446,3.61912,2432.5,2432.4,0.41134]
[1730789909842,7.39623153,2432.5,2432.4,0.41134]
[1730789910848,3.61912,2432.5,2432.4,0.41134]
[1730789911647,0.41132,2432.5,2432.4,0.41134]
[1730789911849,3.61912,2432.5,2432.4,0.41134]
[1730789912350,0.41132,2432.5,2432.4,0.41134]
[1730789912541,3.61912,2432.5,2432.4,0.41134]
[1730789913853,3.61912,2432.5,2432.4,0.63692546]
[1730789914048,3.61912,2432.5,2432.4,0.41134]
[1730789915448,4.18797136,2432.5,2432.4,0.41134]
[1730789915652,3.61912,2432.5,2432.4,0.41134]
[1730789916853,0.41132,2432.5,2432.4,0.41134]
[1730789917046,3.61912,2432.5,2432.4,0.41134]
[1730789917943,0.41134,2432.4,2432.3,0.41134]
[1730789918145,3.2078,2432.5,2432.3,0.22560478]
[1730789918346,3.2078,2432.5,2432.2,1.18625301]
[1730789918347,3.61913,2432.5,2432.4,0.41134]
[1730789919151,0.41134,2432.4,2432.3,0.41134]
[1730789919350,0.41134,2432.4,2432.3,0.63839942]
[1730789919947,3.2078,2432.5,2432.3,0.22705722]
[1730789920153,0.41136,2432.3,2432.2,0.41136]
[1730789920451,0.41135,2432.3,2432.2,0.63845238]
[1730789921054,0.86795,2432.3,2432.2,0.63845238]
[1730789921955,0.86795,2432.3,2432.2,1.19525411]
[1730789922452,4.10517593,2432.3,2432.2,1.19525411]
[1730789922954,4.10517593,2432.3,2432.2,0.22708238]
[1730789923156,4.10517593,2432.3,2432.2,0.63845238]
[1730789923353,0.86795,2432.3,2432.2,0.41137]
[1730789923553,0.86795,2432.3,2432.2,0.63846038]
[1730789924246,0.86795,2432.3,2432.2,1.19528335]
[1730789927057,0.86795,2432.3,2432.2,0.96828869]
[1730789927357,0.86795,2432.3,2432.2,1.75239184]
[1730789927558,0.86795,2432.3,2432.2,1.19547315]
[1730789928964,0.86795,2432.3,2432.2,1.19549375]
[1730789929159,0.86795,2432.3,2432.2,1.19549381]
[1730789929160,0.4566,2432.3,2432.2,1.19549381]
[1730789929967,0.86795,2432.3,2432.2,1.19549381]
[1730789930764,0.86795,2432.3,2432.2,1.19558628]
[1730789931662,0.4566,2432.3,2432.2,1.19558628]
[1730789932854,0.4586,2432.6,2432.5,0.41132]
[1730789932855,0.86991,2432.6,2432.5,0.41132]
[1730789933161,0.9058,2432.6,2432.5,0.63850109]
[1730789933363,1.3171,2432.6,2432.5,0.63850109]
[1730789933966,5.63480231,2432.6,2432.5,0.63850109]
[1730789934654,5.63480231,2432.6,2432.5,0.22718109]
[1730789934849,5.63480231,2432.6,2432.4,0.41133]
[1730789934850,0.41132,2432.5,2432.4,0.41133]
[1730789935059,4.72902231,2432.5,2432.4,0.22727711]
[1730789936058,4.72902231,2432.5,2432.4,0.63861711]
[1730789936852,4.31770231,2432.5,2432.4,0.63861711]
[1730789937458,4.31770231,2432.5,2432.4,1.65944151]
[1730789938057,4.31770231,2432.5,2432.4,1.65937393]
[1730789938364,4.72902231,2432.5,2432.4,0.78453393]
[1730789938663,8.84022231,2432.5,2432.4,0.22727711]
[1730789938855,0.41141,2432.1,2431.9,1.0132]
[1730789939055,0.8887,2432.0,2431.8,0.41143]
[1730789939367,0.4307,2431.9,2431.8,0.41144]
[1730789939660,0.4307,2431.9,2431.8,2.38238074]
[1730789940467,3.67068176,2431.9,2431.8,2.38238074]
[1730789940964,3.67068176,2431.9,2431.8,2.38230275]
[1730789941665,0.8887,2432.0,2431.8,1.97086275]
[1730789941864,0.8887,2432.0,2431.9,1.19582977]
[1730789942457,0.8887,2432.0,2431.9,0.6387034]
[1730789943963,0.8887,2432.0,2431.9,0.41142]
[1730789944170,0.8887,2432.0,2431.9,0.63853217]
[1730789944669,4.31997568,2432.1,2432.0,0.41141]
[1730789944863,4.31997568,2432.1,2432.0,1.06772217]
[1730789946562,4.73136568,2432.1,2432.0,0.65631217]
[1730789946762,4.73136568,2432.1,2432.0,0.84061]
[1730789946965,4.31997568,2432.1,2432.0,0.84061]
[1730789947466,4.73136568,2432.1,2432.0,0.84061]
[1730789948260,4.73136568,2432.1,2432.0,0.4292]
[1730789949368,4.73136568,2432.1,2431.9,0.41141]
[1730789949766,0.41141,2432.0,2431.9,0.41141]
[1730789949973,0.41141,2432.0,2431.9,0.63841262]
[1730789950472,0.8866,2432.2,2431.9,0.63841262]
[1730789950667,0.41141,2432.0,2431.9,0.41141]
[1730789950868,0.41141,2432.0,2431.9,0.63841689]
[1730789951067,0.4114,2432.1,2431.9,0.41141]
[1730789951269,0.4114,2432.1,2431.9,0.63842085]
[1730789951471,0.4114,2432.1,2431.9,0.41141]
[1730789951674,0.41143,2431.9,2431.8,0.41143]
[1730789951861,0.41143,2431.9,2431.8,0.63844284]
[1730789952469,0.41143,2431.9,2431.8,0.41143]
[1730789957178,3.64593256,2431.9,2431.8,0.41143]
[1730789957373,0.41143,2431.9,2431.8,0.41143]
[1730789957577,1.31143,2431.9,2431.8,0.41143]
[1730789958177,0.9,2431.9,2431.7,1.63505301]
[1730789958370,0.41144,2431.8,2431.7,2.04649301]
[1730789959075,1.18625301,2431.8,2431.6,0.9229]
[1730789959375,1.18625301,2431.8,2431.5,0.84118]
[1730789959376,0.41147,2431.6,2431.5,0.84118]
[1730789959875,0.86067,2431.6,2431.5,0.84118]
[1730789960480,0.86067,2431.6,2431.5,0.84119]
[1730789962775,0.86067,2431.6,2431.5,0.4297]
[1730789964378,4.06847,2431.6,2431.5,0.4297]
[1730789964878,4.06847,2431.6,2431.5,0.84119]
[1730789965073,4.06847,2431.6,2431.5,0.4297]
[1730789969181,0.86067,2431.6,2431.5,0.4297]
[1730789970877,0.41151,2431.4,2431.3,2.08615301]
[1730789971074,1.18625301,2431.4,2431.2,0.45]
[1730789971271,0.85472,2431.3,2431.2,0.45]
[1730789974186,0.85472,2431.3,2431.2,0.86154]
[1730789974380,0.85472,2431.3,2431.2,0.45]
[1730789976188,0.41156,2431.2,2431.1,0.41156]
[1730789976380,0.41156,2431.2,2431.1,0.84416]
[1730789977282,6.75151257,2431.3,2431.2,0.41154]
[1730789977583,6.33998257,2431.3,2431.1,0.4326]
[1730789977783,0.41154,2431.2,2431.1,0.84415]